bitfinex/quotes_BTCUSD_20241201
["timestamp","ask_amount","ask_price","bid_price","bid_amount"]
[1733046732269,0.206033,97072.0,97070.0,0.004]
[1733046732470,0.206033,97072.0,97070.0,0.002]
[1733046732692,0.206033,97072.0,97070.0,0.004]
[1733046733791,0.206014,97081.0,97070.0,0.004]
[1733046734012,0.206014,97081.0,97070.0,0.31666685]
[1733046734013,0.206021,97078.0,97070.0,0.31666685]
[1733046734438,0.206021,97078.0,97072.0,0.31266685]
[1733046734607,0.206021,97078.0,97073.0,0.31266685]
[1733046734825,0.20602,97078.0,97073.0,0.31266685]
[1733046735058,0.10284521,97081.0,97073.0,0.31266685]
[1733046735239,0.206022,97077.0,97073.0,0.31266685]
[1733046735678,0.206022,97077.0,97074.0,0.31266685]
[1733046735858,0.206022,97077.0,97073.0,0.31266685]
[1733046736225,0.412045,97077.0,97073.0,0.31266685]
[1733046736453,0.206022,97077.0,97074.0,0.31266685]
[1733046738300,0.206022,97077.0,97074.0,0.31466685]
[1733046738953,0.206022,97077.0,97074.0,0.31566685]
[1733046739582,0.00529508,97076.0,97074.0,0.31566685]
[1733046739798,0.206026,97075.0,97074.0,0.31566685]
[1733046740212,0.2113216,97075.0,97074.0,0.31566685]
[1733046740641,0.2113216,97075.0,97074.0,0.31366685]
[1733046741074,0.0052956,97075.0,97074.0,0.31566685]
[1733046741289,0.0052956,97075.0,97074.0,0.31366685]
[1733046741494,0.206022,97077.0,97074.0,0.31566685]
[1733046741719,0.00529294,97075.0,97074.0,0.31466685]
[1733046741974,0.206022,97077.0,97074.0,0.31666685]
[1733046742207,0.00528884,97075.0,97074.0,0.31666685]
[1733046742422,0.206022,97077.0,97074.0,0.31266685]
[1733046742646,0.00528884,97075.0,97074.0,0.31266685]
[1733046742875,0.206022,97077.0,97074.0,0.31366685]
[1733046743128,0.00528884,97075.0,97074.0,0.31366685]
[1733046743373,0.00528936,97076.0,97074.0,0.31266685]
[1733046743596,0.00528884,97075.0,97074.0,0.31266685]
[1733046743813,0.00528884,97075.0,97074.0,0.31681318]
[1733046744025,0.206022,97077.0,97074.0,0.31481318]
[1733046744233,0.00528884,97075.0,97074.0,0.31481318]
[1733046744495,0.206022,97077.0,97074.0,0.31681318]
[1733046744696,0.00528884,97075.0,97074.0,0.004]
[1733046745118,0.206022,97077.0,97074.0,0.31481683]
[1733046745304,0.00528884,97075.0,97074.0,0.004]
[1733046745945,0.206022,97077.0,97074.0,0.002]
[1733046746151,0.206022,97077.0,97075.0,0.31275987]
[1733046747655,0.206022,97077.0,97075.0,0.31475987]
[1733046748489,0.206016,97080.0,97075.0,0.31475987]
[1733046748972,0.206016,97080.0,97075.0,0.31575987]
[1733046749185,0.0017288,97077.0,97075.0,0.31580588]
[1733046749409,0.0017288,97077.0,97075.0,0.31481205]
[1733046749639,0.0017288,97077.0,97076.0,0.31281205]
[1733046749852,0.0017288,97077.0,97076.0,0.31282129]
[1733046750068,0.0017288,97077.0,97075.0,0.31282129]
[1733046750529,0.0017288,97077.0,97075.0,0.31382129]
[1733046750763,0.0017288,97077.0,97075.0,0.31282129]
[1733046751014,0.0017288,97077.0,97076.0,0.002]
[1733046751448,0.2077518,97077.0,97075.0,0.31282129]
[1733046751666,0.2077518,97077.0,97076.0,0.31282129]
[1733046752964,0.2077518,97077.0,97076.0,0.31382129]
[1733046753179,0.2077518,97077.0,97076.0,0.31582129]
[1733046753601,0.2077518,97077.0,97076.0,0.003]
[1733046754502,0.2077518,97077.0,97076.0,0.31596136]
[1733046754713,0.21304167,97077.0,97076.0,0.31596136]
[1733046755663,0.21304167,97077.0,97076.0,0.003]
[1733046760421,0.00701867,97077.0,97076.0,0.003]
[1733046789715,0.00701867,97077.0,97076.0,0.002246]
[1733046808077,0.00701867,97077.0,97076.0,0.0031102]
[1733046842014,0.00701867,97077.0,97076.0,0.2570342]
[1733046842487,0.0017288,97077.0,97076.0,0.2570342]
[1733046843203,0.0017288,97077.0,97076.0,0.2550342]
[1733046843442,0.0027288,97077.0,97076.0,0.2570342]
[1733046843804,0.0027288,97077.0,97076.0,0.2567882]
[1733046844222,0.0027288,97077.0,97076.0,0.2577882]
[1733046844645,0.0027288,97077.0,97076.0,0.0507642]
[1733046845058,0.0027288,97077.0,97076.0,0.0537642]
[1733046848241,0.0027288,97077.0,97076.0,0.2597882]
[1733046848868,0.0027288,97077.0,97076.0,0.2517882]
[1733046853063,0.0027288,97077.0,97076.0,0.0457642]
[1733046853480,0.0027288,97077.0,97076.0,0.2517882]
[1733046854117,0.0027288,97077.0,97076.0,0.2526524]
[1733046858160,0.0017284,97084.0,97076.0,0.2526524]
[1733046859191,0.0017284,97084.0,97076.0,0.2496524]
[1733046859596,0.00517633,97083.0,97076.0,0.2476524]
[1733046860019,0.00517633,97083.0,97076.0,0.2098882]
[1733046860225,0.00517633,97083.0,97077.0,0.1312]
[1733046862400,0.00517633,97083.0,97077.0,0.1322]
[1733046863324,0.00517633,97083.0,97077.0,0.1352]
[1733046865226,0.00517633,97083.0,97078.0,0.206019]
[1733046865652,0.0017284,97084.0,97078.0,0.206019]
[1733046866019,0.0017284,97084.0,97082.0,0.20601]
[1733046866214,0.0017284,97083.0,97082.0,0.20601]
[1733046866728,0.0017284,97083.0,97082.0,0.0483]
[1733046866898,0.0017284,97083.0,97082.0,0.64250191]
[1733046867367,0.0017284,97083.0,97082.0,0.17633759]
[1733046867700,0.0017284,97083.0,97082.0,0.17333759]
[1733046868110,0.0027284,97083.0,97082.0,0.17933759]
[1733046868986,0.0027284,97083.0,97082.0,0.18033759]
[1733046869453,0.0027284,97083.0,97082.0,0.17933759]
[1733046869602,0.0037284,97083.0,97082.0,0.1532]
[1733046870252,0.0037284,97083.0,97082.0,0.18531607]
[1733046870464,0.0037284,97083.0,97082.0,0.65372378]
[1733046872002,0.0037284,97083.0,97082.0,0.1532]
[1733046872222,0.0037284,97083.0,97082.0,0.65372378]
[1733046872653,0.0037284,97083.0,97082.0,0.1532]
[1733046873109,0.0017286,97091.0,97083.0,0.01]
[1733046873323,0.00188216,97091.0,97083.0,0.216009]
[1733046874526,0.00288216,97091.0,97083.0,0.224009]
[1733046874757,0.00288216,97091.0,97087.0,0.206]
[1733046875339,0.00288216,97091.0,97083.0,0.214009]
[1733046875541,0.206003,97086.0,97083.0,0.008]
[1733046875772,0.206003,97086.0,97083.0,0.31198266]
[1733046875993,0.206007,97084.0,97082.0,0.31202203]
[1733046876195,0.206007,97084.0,97081.0,0.31202203]
[1733046876400,0.2112152,97083.0,97081.0,0.31202203]
[1733046876824,0.4172242,97083.0,97080.0,0.31202203]
[1733046877236,0.2112152,97083.0,97081.0,0.31202203]
[1733046877464,0.2112152,97083.0,97081.0,0.31402203]
[1733046877679,0.2112152,97083.0,97081.0,0.31502203]
[1733046878489,0.2112152,97083.0,97081.0,0.31302203]
[1733046879815,0.2112152,97083.0,97082.0,0.31202203]
[1733046881730,0.2112152,97083.0,97082.0,0.31402203]
[1733046882347,0.2112152,97083.0,97082.0,0.31514353]
[1733046882512,0.2112152,97083.0,97082.0,0.003]
[1733046883962,0.2568152,97083.0,97082.0,0.003]
[1733046884165,0.3370152,97083.0,97082.0,0.003]
[1733046885099,0.3370152,97083.0,97082.0,0.001]
[1733046885518,0.206022,97077.0,97076.0,0.31311675]
[1733046885900,0.21120991,97077.0,97076.0,0.31311675]
[1733046886760,0.21120991,97077.0,97076.0,0.31411675]
[1733046887865,0.21120991,97077.0,97076.0,0.31711675]
[1733046890012,0.21120991,97077.0,97076.0,0.3171003]
[1733046891447,0.21120991,97077.0,97076.0,0.0048642]
[1733046893682,0.00518791,97077.0,97076.0,0.0048642]
[1733046893918,0.206018,97079.0,97076.0,0.0048642]
[1733046894153,0.00518649,97078.0,97076.0,0.0048642]
[1733046894605,0.00518649,97078.0,97076.0,0.3171003]
[1733046894844,0.00518649,97078.0,97076.0,0.0038642]
[1733046895087,0.00518649,97078.0,97077.0,0.3122361]
[1733046895303,0.206011,97082.0,97077.0,0.31213174]
[1733046895522,0.206015,97080.0,97077.0,0.31213174]
[1733046895757,0.005187,97079.0,97078.0,0.31213174]
[1733046895965,0.005187,97079.0,97077.0,0.31213174]
[1733046896213,0.005187,97079.0,97077.0,0.31413174]
[1733046896708,0.00518649,97078.0,97077.0,0.31408783]
[1733046896936,0.206011,97082.0,97077.0,0.31408783]
[1733046897158,0.00518649,97078.0,97077.0,0.31408783]
[1733046897387,0.206011,97082.0,97077.0,0.31408783]
[1733046897638,0.00518649,97078.0,97077.0,0.31408783]
[1733046897883,0.00518853,97078.0,97077.0,0.31208783]
[1733046898116,0.206011,97082.0,97077.0,0.001]
[1733046898350,0.00519007,97081.0,97078.0,0.31405859]
[1733046898561,0.206015,97080.0,97079.0,0.31205859]
[1733046898784,0.00519007,97081.0,97079.0,0.31205859]
[1733046899003,0.21120456,97080.0,97079.0,0.31205859]
[1733046899866,0.21120456,97080.0,97078.0,0.31305859]
[1733046900762,0.00518956,97080.0,97078.0,0.31305859]
[1733046901260,0.0017284,97084.0,97078.0,0.31305859]
[1733046901473,0.00518904,97079.0,97078.0,0.31305859]
[1733046901691,0.0017284,97084.0,97078.0,0.31305859]
[1733046901692,0.206009,97083.0,97078.0,0.31205859]
[1733046901901,0.00518904,97079.0,97076.0,0.0008642]
[1733046902118,0.0017284,97084.0,97078.0,0.31195882]
[1733046902348,0.0017284,97084.0,97079.0,0.31295882]
[1733046902580,0.0017284,97084.0,97083.0,0.31195882]
[1733046902794,0.0017284,97084.0,97080.0,0.255615]
[1733046903008,0.0027284,97084.0,97080.0,0.255615]
[1733046904070,0.0027284,97084.0,97080.0,0.46163]
[1733046904276,0.0027284,97084.0,97082.0,0.206011]
[1733046904487,0.0017284,97084.0,97082.0,0.206011]
[1733046904695,0.00188216,97091.0,97089.0,0.205995]
[1733046906005,0.00288216,97091.0,97089.0,0.213995]
[1733046906858,0.00288216,97091.0,97090.0,0.0765]
[1733046907085,0.00288216,97091.0,97090.0,0.1261]
[1733046907302,0.00288216,97091.0,97090.0,0.1361]
[1733046907513,0.00288216,97091.0,97090.0,0.23894521]
[1733046907754,0.00188216,97091.0,97090.0,0.23894521]
[1733046908169,0.00288216,97091.0,97090.0,0.24694521]
[1733046909026,0.00288216,97091.0,97090.0,0.74746899]
[1733046909247,0.00288216,97091.0,97090.0,0.28300753]
[1733046909898,0.00288216,97091.0,97090.0,0.27900753]
[1733046910341,0.00288216,97091.0,97090.0,0.28300753]
[1733046910757,0.00288216,97091.0,97090.0,0.27500753]
[1733046910758,0.00188216,97091.0,97090.0,0.27500753]
[1733046911006,0.00188216,97091.0,97090.0,0.28500753]
[1733046911237,0.001729,97105.0,97104.0,0.342464]
[1733046911452,0.00178863,97105.0,97104.0,0.44530921]
[1733046912534,0.00278863,97105.0,97104.0,0.32780921]
[1733046912752,0.00178863,97105.0,97104.0,0.32380921]
[1733046913246,0.00178863,97105.0,97104.0,0.31880921]
[1733046913691,0.00278863,97105.0,97104.0,0.32680921]
[1733046914144,0.00378863,97105.0,97104.0,0.33580921]
[1733046918108,0.00378863,97105.0,97104.0,0.38210921]
[1733046918821,0.00378863,97105.0,97104.0,0.46230921]
[1733046923502,0.0793643,97137.0,97118.0,0.215935]
[1733046923721,0.00178842,97119.0,97118.0,0.215935]
[1733046924308,0.00178842,97119.0,97118.0,0.52608668]
[1733046924708,0.00178842,97119.0,97118.0,0.53208668]
[1733046925120,0.00178842,97119.0,97118.0,0.53608668]
[1733046925328,0.00178842,97119.0,97118.0,0.225935]
[1733046928706,0.00178842,97119.0,97118.0,0.536022]
[1733046929118,0.00178842,97119.0,97118.0,0.225935]
[1733046929358,0.00178842,97119.0,97118.0,0.536022]
[1733046929599,0.00178842,97119.0,97118.0,0.350135]
[1733046930030,0.00178842,97119.0,97118.0,0.274535]
[1733046930457,0.00178842,97119.0,97118.0,0.268535]
[1733046930901,0.00178842,97119.0,97118.0,0.277535]
[1733046931112,0.00178842,97119.0,97118.0,0.273535]
[1733046931322,0.00178842,97119.0,97118.0,0.278535]
[1733046931946,0.00178842,97119.0,97118.0,0.273535]
[1733046932215,0.00178842,97119.0,97118.0,0.224935]
[1733046932419,0.00178842,97119.0,97118.0,0.229935]
[1733046938607,0.1316,97135.0,97124.0,0.20592]
[1733046938836,0.13165962,97135.0,97133.0,0.31010325]
[1733046939062,0.00484747,97134.0,97133.0,0.31010325]
[1733046939292,0.00484747,97134.0,97132.0,0.31010325]
[1733046939509,0.00484747,97134.0,97133.0,0.31010325]
[1733046940429,0.00484747,97134.0,97124.0,0.20592]
[1733046940667,0.00484747,97134.0,97124.0,0.20792]
[1733046941140,0.13165962,97135.0,97124.0,0.20692]
[1733046941365,0.13165962,97135.0,97133.0,0.002]
[1733046941886,0.00484747,97134.0,97133.0,0.002]
[1733046942123,0.00484747,97134.0,97124.0,0.20692]
[1733046942621,0.13165962,97135.0,97124.0,0.20692]
[1733046943104,0.13165962,97135.0,97124.0,0.20592]
[1733046943603,0.13165962,97135.0,97124.0,0.20792]
[1733046944315,0.00464456,97134.0,97124.0,0.20792]
[1733046944553,0.00464456,97134.0,97133.0,0.001]
[1733046945030,0.00464456,97134.0,97124.0,0.20992]
[1733046945460,0.00464456,97134.0,97124.0,0.20692]
[1733046945904,0.00464456,97134.0,97124.0,0.20592]
[1733046946148,0.00464456,97134.0,97133.0,0.001]
[1733046946984,0.00464456,97134.0,97133.0,0.003]
[1733046947468,0.00464456,97134.0,97133.0,0.002]
[1733046948638,0.00464456,97134.0,97133.0,0.003]
[1733046949781,0.00637316,97134.0,97133.0,0.003]
[1733046950676,0.21227416,97134.0,97133.0,0.003]
[1733046954296,0.00637316,97134.0,97133.0,0.003]
[1733046958205,0.00637316,97134.0,97133.0,0.208903]
[1733046958427,0.00485129,97134.0,97133.0,0.414806]
[1733046958674,0.0008643,97137.0,97133.0,0.414806]
[1733046958883,0.0008643,97137.0,97133.0,0.41486562]
[1733046960149,0.0008643,97137.0,97133.0,0.41286562]
[1733046960577,0.0008643,97137.0,97133.0,0.41386562]
[1733046960800,0.0008643,97137.0,97133.0,0.41286562]
[1733046961245,0.0008643,97137.0,97133.0,0.41386562]
[1733046961946,0.0008642,97134.0,97133.0,0.20796262]
[1733046963504,0.0008642,97134.0,97133.0,0.20696262]
[1733046964457,0.0008642,97134.0,97133.0,0.20796262]
[1733046964813,0.0008642,97134.0,97133.0,0.20896262]
[1733046968648,0.0008642,97134.0,97133.0,0.00305962]
[1733046969247,0.00531297,97134.0,97133.0,0.00305962]
[1733046972687,0.0008642,97134.0,97133.0,0.00305962]
[1733046973594,0.0017284,97136.0,97133.0,0.00305962]
[1733046974452,0.00485263,97135.0,97133.0,0.00205962]
[1733046974669,0.0017284,97136.0,97133.0,5.962e-05]
[1733046974876,0.0017284,97136.0,97133.0,0.00278782]
[1733046975296,0.0017284,97136.0,97133.0,0.00178782]
[1733046975515,0.00444824,97135.0,97133.0,0.00278782]
[1733046975732,0.0008641,97134.0,97133.0,0.00278782]
[1733046975955,0.0008641,97134.0,97133.0,0.00378782]
[1733046976170,0.00531183,97134.0,97133.0,0.00378782]
[1733046976321,0.0008641,97134.0,97133.0,0.00378782]
[1733046976536,0.00571617,97134.0,97133.0,0.00378782]
[1733046976735,0.0008641,97134.0,97133.0,0.00378782]
[1733046976987,0.00571617,97134.0,97133.0,0.00378782]
[1733046977182,0.0008641,97134.0,97133.0,0.00178782]
[1733046977385,0.0008641,97134.0,97133.0,0.00278782]
[1733046977613,0.0008641,97134.0,97133.0,0.00478782]
[1733046977818,0.0008641,97134.0,97133.0,0.00378782]
[1733046978240,0.0008641,97134.0,97133.0,0.00478782]
[1733046982218,0.0008641,97134.0,97133.0,0.5049166]
[1733046982629,0.0008641,97134.0,97133.0,0.00478782]
[1733046987032,0.0008641,97134.0,97133.0,0.05158782]
[1733046987669,0.0008641,97134.0,97133.0,0.18650236]
[1733046987878,0.0008641,97134.0,97133.0,0.27170236]
[1733046988105,0.0017284,97136.0,97135.0,0.01]
[1733046988350,0.0017284,97136.0,97135.0,0.19151454]
[1733046988557,0.0791,97162.0,97141.0,0.01]
[1733046988765,0.08137717,97162.0,97147.0,0.205873]
[1733046989818,0.0791,97162.0,97147.0,0.205873]
[1733046990492,0.0791,97162.0,97147.0,0.210873]
[1733046999385,0.0791,97162.0,97147.0,0.212601]
[1733046999652,0.001064,97149.0,97147.0,0.212601]
[1733047011059,0.001064,97149.0,97147.0,0.1882286]
[1733047017936,0.0465,97148.0,97147.0,0.006728]
[1733047018781,0.0465,97148.0,97147.0,0.003728]
[1733047018898,0.0465,97148.0,97147.0,0.001728]
[1733047019101,0.001064,97149.0,97147.0,0.003728]
[1733047019297,0.001064,97149.0,97148.0,0.205871]
[1733047020811,0.001064,97149.0,97148.0,0.208871]
[1733047022022,0.001064,97149.0,97148.0,0.210871]
[1733047030198,0.001064,97149.0,97148.0,0.71062179]
[1733047030618,0.00227723,97163.0,97161.0,0.205842]
[1733047030826,0.0456,97164.0,97161.0,0.205842]
[1733047031043,0.00458928,97162.0,97161.0,0.205842]
[1733047031257,0.0456,97164.0,97161.0,0.205842]
[1733047031473,0.00458928,97162.0,97161.0,0.205842]
[1733047031694,0.0456,97164.0,97157.0,0.20585]
[1733047031865,0.00458984,97163.0,97157.0,0.20585]
[1733047032075,0.0456,97164.0,97157.0,0.20585]
[1733047032485,0.002,97163.0,97157.0,0.20585]
[1733047033043,0.0456,97164.0,97157.0,0.20585]
[1733047033252,0.04787716,97164.0,97157.0,0.20585]
[1733047033456,0.05074116,97164.0,97157.0,0.20585]
[1733047033585,0.05074116,97164.0,97157.0,0.411702]
[1733047033799,0.04874116,97164.0,97157.0,0.411702]
[1733047034319,0.002,97163.0,97157.0,0.411702]
[1733047034530,0.00427717,97163.0,97157.0,0.411702]
[1733047034746,0.0045908,97162.0,97157.0,0.411702]
[1733047035163,0.00427717,97163.0,97157.0,0.411702]
[1733047035375,0.00459024,97161.0,97157.0,0.411702]
[1733047035602,0.0045908,97162.0,97157.0,0.411702]
[1733047035809,0.00227717,97163.0,97157.0,0.411702]
[1733047036316,0.0045908,97162.0,97157.0,0.411702]
[1733047036539,0.00227717,97163.0,97157.0,0.411702]
[1733047036758,0.00559024,97161.0,97157.0,0.411702]
[1733047036963,0.001,97161.0,97157.0,0.411702]
[1733047037393,0.00227717,97163.0,97157.0,0.411702]
[1733047037837,0.0045908,97162.0,97157.0,0.411702]
[1733047038073,0.0045908,97162.0,97157.0,0.20585]
[1733047038309,0.00227717,97163.0,97157.0,0.20585]
[1733047038770,0.0055908,97162.0,97157.0,0.20585]
[1733047039237,0.00227717,97163.0,97157.0,0.20585]
[1733047039663,0.00458986,97162.0,97157.0,0.20585]
[1733047040077,0.00427717,97163.0,97157.0,0.20585]
[1733047040523,0.00227717,97163.0,97157.0,0.20585]
[1733047040756,0.00460487,97162.0,97157.0,0.20585]
[1733047040964,0.00227717,97163.0,97157.0,0.20585]
[1733047041175,0.00460487,97161.0,97157.0,0.20585]
[1733047041377,0.00227717,97163.0,97157.0,0.20585]
[1733047041602,0.00458874,97160.0,97157.0,0.20585]
[1733047041829,0.001,97162.0,97157.0,0.20585]
[1733047042365,0.00227717,97163.0,97157.0,0.20585]
[1733047042596,0.0045893,97161.0,97157.0,0.20585]
[1733047042837,0.00458986,97162.0,97157.0,0.20585]
[1733047043123,0.00227717,97163.0,97157.0,0.20585]
[1733047043308,0.0045893,97161.0,97157.0,0.20585]
[1733047043528,0.001,97162.0,97157.0,0.20585]
[1733047043782,0.041,97162.0,97157.0,0.20585]
[1733047044948,0.04,97162.0,97157.0,0.20585]
[1733047045407,0.001,97161.0,97157.0,0.20585]
[1733047045857,0.04,97162.0,97157.0,0.20585]
[1733047046099,0.04,97162.0,97154.0,0.205858]
[1733047046320,0.041,97162.0,97154.0,0.205858]
[1733047046554,0.0045893,97161.0,97154.0,0.205858]
[1733047047039,0.0055893,97161.0,97154.0,0.205858]
[1733047049443,0.0045893,97161.0,97154.0,0.205858]
[1733047049694,0.0055893,97161.0,97154.0,0.205858]
[1733047053155,0.0055893,97161.0,97150.0,0.205866]
[1733047054553,0.0045893,97161.0,97150.0,0.205866]
[1733047056148,0.0055893,97161.0,97150.0,0.205866]
[1733047057428,0.0064532,97161.0,97150.0,0.205866]
[1733047058146,0.0064532,97161.0,97154.0,0.205858]
[1733047059057,0.0054532,97161.0,97154.0,0.205858]
[1733047059576,0.0064532,97161.0,97154.0,0.205858]
[1733047060824,0.00781637,97161.0,97157.0,0.20585]
[1733047062126,0.00681637,97161.0,97157.0,0.20585]
[1733047062375,0.00781637,97161.0,97157.0,0.20585]
[1733047064428,0.0018639,97161.0,97157.0,0.20585]
[1733047070664,0.0018639,97161.0,97154.0,0.205858]
[1733047071132,0.01115768,97160.0,97154.0,0.205858]
[1733047071398,0.03212198,97162.0,97154.0,0.411716]
[1733047071627,0.01301587,97159.0,97154.0,0.205858]
[1733047071866,0.03212198,97162.0,97153.0,0.70599102]
[1733047072102,0.0298448,97162.0,97153.0,0.70599102]
[1733047072332,0.01301998,97161.0,97154.0,0.50013102]
[1733047072575,0.001,97161.0,97155.0,0.205856]
[1733047073045,0.03212198,97162.0,97155.0,0.205856]
[1733047073503,0.01301998,97161.0,97155.0,0.205856]
[1733047073981,0.03312198,97162.0,97155.0,0.205856]
[1733047074443,0.01301998,97161.0,97155.0,0.70598702]
[1733047074912,0.03212198,97162.0,97155.0,0.70598702]
[1733047075180,0.0308448,97162.0,97155.0,0.70598702]
[1733047075434,0.01301998,97161.0,97156.0,0.50013102]
[1733047075879,0.0298448,97162.0,97156.0,0.50013102]
[1733047076332,0.01401998,97161.0,97156.0,0.50013102]
[1733047076768,0.0298448,97162.0,97156.0,0.50013102]
[1733047077192,0.01301998,97161.0,97156.0,0.50013102]
[1733047077380,0.0298448,97162.0,97156.0,0.50013102]
[1733047077795,0.0130977,97161.0,97156.0,0.50013102]
[1733047078159,0.0298448,97162.0,97156.0,0.50013102]
[1733047078586,0.0130977,97161.0,97156.0,0.50013102]
[1733047078962,0.0308448,97162.0,97156.0,0.50013102]
[1733047079371,0.0130977,97161.0,97156.0,0.50013102]
[1733047079621,0.0298448,97162.0,97156.0,0.50013102]
[1733047080066,0.0140977,97161.0,97156.0,0.50013102]
[1733047080429,0.0298448,97162.0,97156.0,0.50013102]
[1733047080634,0.0307087,97162.0,97156.0,0.50013102]
[1733047080833,0.00785862,97161.0,97156.0,0.50013102]
[1733047081456,0.0307087,97162.0,97156.0,0.50013102]
[1733047081868,0.00785862,97161.0,97156.0,0.50013102]
[1733047082071,0.0317087,97162.0,97156.0,0.50013102]
[1733047082291,0.00785862,97161.0,97156.0,0.50013102]
[1733047082523,0.0317087,97162.0,97156.0,0.50013102]
[1733047082747,0.0307087,97162.0,97156.0,0.50013102]
[1733047082969,0.00785862,97161.0,97156.0,0.50013102]
[1733047083174,0.00885862,97161.0,97156.0,0.50013102]
[1733047083618,0.00785862,97161.0,97156.0,0.50013102]
[1733047084287,0.00785862,97161.0,97152.0,0.70599202]
[1733047084493,0.00785862,97161.0,97154.0,0.50013102]
[1733047085872,0.00785862,97161.0,97153.0,0.50013102]
[1733047086328,0.00785584,97160.0,97157.0,0.0083081]
[1733047086537,0.0117833,97160.0,97157.0,0.0083081]
[1733047086752,0.00227718,97162.0,97157.0,0.0083081]
[1733047086963,0.01178331,97159.0,97157.0,0.0083081]
[1733047087176,0.001,97161.0,97157.0,0.0083081]
[1733047087402,0.01178331,97158.0,97157.0,0.0083081]
[1733047087644,0.00227718,97164.0,97157.0,0.0083081]
[1733047087885,0.01178536,97158.0,97157.0,0.0083081]
[1733047088120,0.00227718,97164.0,97157.0,0.0083081]
[1733047088350,0.01178536,97158.0,97157.0,0.0083081]
[1733047088563,0.00227718,97164.0,97157.0,0.0083081]
[1733047088767,0.01178536,97158.0,97157.0,0.0083081]
[1733047089019,0.001,97160.0,97157.0,0.0083081]
[1733047089228,0.01178336,97158.0,97157.0,0.0083081]
[1733047089440,0.00227718,97163.0,97157.0,0.0083081]
[1733047089652,0.01178336,97158.0,97157.0,0.0083081]
[1733047089867,0.00227718,97163.0,97157.0,0.0083081]
[1733047090049,0.01178336,97158.0,97157.0,0.0083081]
[1733047090288,0.00227718,97163.0,97157.0,0.0083081]
[1733047090481,0.01178336,97158.0,97157.0,0.0083081]
[1733047090734,0.00227718,97163.0,97157.0,0.0083081]
[1733047090914,0.01178336,97158.0,97157.0,0.0083081]
[1733047091385,0.00427718,97163.0,97157.0,0.0083081]
[1733047091596,0.01178336,97158.0,97157.0,0.0083081]
[1733047091774,0.00427718,97163.0,97157.0,0.0083081]
[1733047091986,0.01178536,97158.0,97157.0,0.0083081]
[1733047092191,0.00427718,97163.0,97157.0,0.0083081]
[1733047092406,0.01178536,97158.0,97157.0,0.0083081]
[1733047092614,0.0008643,97161.0,97157.0,0.0083081]
[1733047092821,0.01178536,97158.0,97157.0,0.0083081]
[1733047093025,0.0008643,97161.0,97157.0,0.0083081]
[1733047093237,0.01178536,97158.0,97157.0,0.0083081]
[1733047093455,0.0008643,97161.0,97157.0,0.0083081]
[1733047093666,0.01178536,97158.0,97157.0,0.0083081]
[1733047093868,0.0008643,97161.0,97157.0,0.0083081]
[1733047094415,0.0018643,97161.0,97157.0,0.0083081]
[1733047099580,0.023,97195.0,97165.0,0.01]
[1733047099753,0.205778,97192.0,97191.0,0.23106903]
[1733047099958,0.33162321,97192.0,97191.0,0.23106903]
[1733047100785,0.33221992,97192.0,97191.0,0.23106903]
[1733047101014,0.33221992,97192.0,97191.0,0.23206903]
[1733047102582,0.33221992,97192.0,97191.0,0.001]
[1733047102802,0.46091992,97192.0,97191.0,0.001]
[1733047103218,0.46091992,97192.0,97191.0,0.2320731]
[1733047103594,0.46591992,97192.0,97191.0,0.2330731]
[1733047104206,0.46678412,97192.0,97191.0,0.2330731]
[1733047104582,0.46678412,97192.0,97191.0,0.001]
[1733047104760,0.46678412,97192.0,97191.0,0.002]
[1733047105196,0.00014769,97210.0,97191.0,0.001]
[1733047105452,0.10284521,97192.0,97191.0,0.23206836]
[1733047105664,0.10884521,97192.0,97191.0,0.23306836]
[1733047106138,0.10284521,97192.0,97191.0,0.23206836]
[1733047106388,0.10284521,97192.0,97191.0,0.23306836]
[1733047106854,0.30862321,97192.0,97191.0,0.23206836]
[1733047107054,0.30862321,97192.0,97191.0,0.001]
[1733047107335,0.31462321,97192.0,97191.0,0.23206836]
[1733047107536,0.31462321,97192.0,97191.0,0.23306836]
[1733047107807,0.31462321,97192.0,97191.0,0.23206836]
[1733047108278,0.31462321,97192.0,97191.0,0.23306836]
[1733047108503,0.37482321,97192.0,97191.0,0.23306836]
[1733047108910,0.37482321,97192.0,97191.0,0.002]
[1733047109556,0.37482321,97192.0,97191.0,0.23306836]
[1733047109767,0.37482321,97192.0,97191.0,0.002]
[1733047110958,0.33572321,97192.0,97191.0,0.002]
[1733047111173,0.31462321,97192.0,97191.0,0.002]
[1733047114407,0.32169583,97192.0,97191.0,0.002]
[1733047116193,0.32255983,97192.0,97191.0,0.002]
[1733047125576,0.32255983,97192.0,97191.0,0.41145921]
[1733047126065,0.32255983,97192.0,97191.0,0.002]
[1733047127725,0.32255983,97192.0,97191.0,0.41132523]
[1733047127985,0.32255983,97192.0,97191.0,0.002]
[1733047129173,0.32255983,97192.0,97191.0,0.0037276]
[1733047132565,0.32255983,97192.0,97191.0,0.41306654]
[1733047133429,0.32165023,97192.0,97191.0,0.41306654]
[1733047133643,0.32165023,97192.0,97191.0,0.0037276]
[1733047134289,0.32165023,97192.0,97191.0,0.41306654]
[1733047134497,0.32165023,97192.0,97191.0,0.0037276]
[1733047134722,0.32165023,97192.0,97191.0,0.41302037]
[1733047135755,0.32165023,97192.0,97191.0,0.0037276]
[1733047137943,0.32165023,97192.0,97191.0,0.0502276]
[1733047138159,0.32165023,97192.0,97191.0,0.45952037]
[1733047139907,0.32165023,97192.0,97191.0,0.45945831]
[1733047140766,0.32165023,97192.0,97191.0,0.0269116]
[1733047141961,0.32165023,97192.0,97191.0,0.0286392]
[1733047151121,0.32165023,97192.0,97191.0,0.41094224]
[1733047151371,0.32165023,97192.0,97191.0,0.0017276]
[1733047163250,0.32165023,97192.0,97191.0,0.41103106]
[1733047163489,0.32165023,97192.0,97190.0,0.37827647]
[1733047163630,0.205781,97191.0,97188.0,0.0768]
[1733047163841,0.10284521,97190.0,97189.0,0.0496]
[1733047164049,0.11012579,97190.0,97189.0,0.0496]
[1733047165490,0.11212579,97190.0,97189.0,0.0496]
[1733047166494,0.11312579,97190.0,97189.0,0.0506]
[1733047168405,0.10976538,97190.0,97189.0,0.0506]
[1733047175692,0.10976538,97190.0,97189.0,0.0523278]
[1733047177207,0.10976538,97190.0,97189.0,0.0027278]
[1733047177625,0.10976538,97190.0,97189.0,0.41236401]
[1733047180769,0.10976538,97190.0,97189.0,0.41235438]
[1733047182672,0.10976538,97190.0,97189.0,0.0027278]
[1733047183487,0.13840882,97190.0,97189.0,0.0027278]
[1733047184312,0.13840882,97190.0,97189.0,0.41235438]
[1733047184529,0.10976538,97190.0,97189.0,0.41235438]